Workbook

Sheet Corporate Model
A2: Period | E2: 2016 | F2: =E2+1 -> 2017 | G2: =F2+1 -> 2018 | H2: 2019 | I2: 2020 | J2: 2021 | K2: 2022 | L2: 2023
A3: Historic Switch | E3: TRUE | F3: FALSE | G3: FALSE | H3: FALSE | I3: FALSE | J3: FALSE | K3: FALSE | L3: FALSE
A5: Historic Balance
B6: Assets
C7: Cash Balance | E7: 150
C8: Gross Assets | E8: 1000
C9: Acccumulated Depreciation | E9: 450
C10: Net Plant | E10: =E8-E9 -> 550
D11: Total Assets | E11: =E10+E7 -> 700
C13: Debt | E13: 400
C14: Equity | E14: =E11-E13 -> 300
D15: Total | E15: =SUM(E13:E14) -> 700
A17: Operating Analysis and Assumptions
B18: EBITDA | E18: 150 | F18: 100 | G18: 280 | H18: =G18*1.03 -> 288.4 | I18: 297.052 | J18: 305.96356 | K18: 315.1424668 | L18: 324.5967408
B19: Cap Exp | E19: 80 | F19: 400 | G19: 200 | H19: 80 | I19: 80 | J19: 80 | K19: 80 | L19: 80
A21: Depreciation
B22: Historic Growth | E22: 0.09205804514
B23: Life | E23: 7
B25: Gross Plant - Existing Plant
C26: Opening Balance | F26: =E28 -> 1000 | G26: =F28 -> 891.9934028 | H26: 774.0439294 | I26: 645.2362581 | J26: 504.5708043 | K26: 350.9559639 | L26: 183.1996415
C27: Less Retirement | E27: 98.90188317 | F27: =E27*(1+$E$22) -> 108.0065972 | G27: =F27*(1+$E$22) -> 117.9494734 | H27: 128.8076713 | I27: 140.6654538 | J27: 153.6148405 | K27: 167.7563224 | L27: 183.1996415
C28: Closing Balance | E28: =IF(E3,E8,E26-E27) -> 1000 | F28: =IF(F3,F8,F26-F27) -> 891.9934028 | G28: 774.0439294 | H28: 645.2362581 | I28: 504.5708043 | J28: 350.9559639 | K28: 183.1996415 | L28: 4.297768896e-08
C30: Depreciation | E30: =1/E23 -> 0.1428571429 | F30: =AVERAGE(F28,F26)*$E$30 -> 135.1423859 | G30: =AVERAGE(G28,G26)*$E$30 -> 119.0026666 | H30: 101.3771563 | I30: 82.12907589 | J30: 61.10905487 | K30: 38.15397181 | L30: 13.08568868
B32: Accumulated Depreciation
C33: Opening Balance | F33: =E36 -> 450 | G33: =F36 -> 477.1357887 | H33: 478.1889819 | I33: 450.7584668 | J33: 392.222089 | K33: 299.7163034 | L33: 170.1139528
C34: Add: Depreciation | F34: =F30 -> 135.1423859 | G34: =G30 -> 119.0026666 | H34: 101.3771563 | I34: 82.12907589 | J34: 61.10905487 | K34: 38.15397181 | L34: 13.08568868
C35: Less: Retirements | F35: =F27 -> 108.0065972 | G35: =G27 -> 117.9494734 | H35: 128.8076713 | I35: 140.6654538 | J35: 153.6148405 | K35: 167.7563224 | L35: 183.1996415
C36: Closing Balance | E36: =IF(E3,E9,E33+E34-E35) -> 450 | F36: =IF(F3,F9,F33+F34-F35) -> 477.1357887 | G36: 478.1889819 | H36: 450.7584668 | I36: 392.222089 | J36: 299.7163034 | K36: 170.1139528 | L36: 4.915665386e-08
C38: Net Plant | E38: =E28-E36 -> 550 | F38: =F28-F36 -> 414.8576141 | G38: =G28-G36 -> 295.8549475 | H38: 194.4777912 | I38: 112.3487154 | J38: 51.23966049 | K38: 13.08568868 | L38: -6.178964895e-09
B40: New Gross Plant
C41: Opening Balance | F41: =E43 -> 0 | G41: =F43 -> 400 | H41: 600 | I41: 680 | J41: 760 | K41: 840 | L41: 920
C42: Add: Cap Exp | F42: =F19 -> 400 | G42: =G19 -> 200 | H42: 80 | I42: 80 | J42: 80 | K42: 80 | L42: 80
C43: Closing Balance | F43: =SUM(F41:F42) -> 400 | G43: =SUM(G41:G42) -> 600 | H43: 680 | I43: 760 | J43: 840 | K43: 920 | L43: 1000
C45: Depreciation Expense | E45: =E30 -> 0.1428571429 | F45: =AVERAGE(F43,F41)*$E$45 -> 28.57142857 | G45: =AVERAGE(G43,G41)*$E$45 -> 71.42857143 | H45: 91.42857143 | I45: 102.8571429 | J45: 114.2857143 | K45: 125.7142857 | L45: 137.1428571
C47: Accumulated Depreciation | F47: =E47+F45 -> 28.57142857 | G47: =F47+G45 -> 100 | H47: 191.4285714 | I47: 294.2857143 | J47: 408.5714286 | K47: 534.2857143 | L47: 671.4285714
C49: Total Net Plant | E49: =E38+E43-E47 -> 550 | F49: =F38+F43-F47 -> 786.2861855 | G49: 795.8549475 | H49: 683.0492198 | I49: 578.0630011 | J49: 482.6682319 | K49: 398.7999744 | L49: 328.5714286
A52: Financing
B53: Cash Balance
C54: Opening Balance | F54: =E57 -> 150 | G54: =F57 -> 40 | H54: 112 | I54: 115.36 | J54: 118.8208 | K54: 122.385424 | L54: 126.0569867
C55: Add: New Surplus Cash | F55: =F95 -> 0 | G55: =G95 -> 0 | H55: 0 | I55: 0 | J55: 0 | K55: 0 | L55: 117.4803536
C56: Less: Cash Use for Deficit | F56: =F92 -> 110 | G56: =G92 -> -72 | H56: -3.36 | I56: -3.4608 | J56: -3.564624 | K56: -3.67156272 | L56: -3.781709602
C57: Closing Balance | E57: =IF(E3,E7,E54+E55) -> 150 | F57: =IF(F3,F7,F54+F55-F56) -> 40 | G57: =IF(G3,G7,G54+G55-G56) -> 112 | H57: 115.36 | I57: 118.8208 | J57: 122.385424 | K57: 126.0569867 | L57: 247.3190499
C58: Interest Income | E58: 0.02
C60: Minimum Cash Balance | E60: 0.4 | F60: =$E$60*F18 -> 40 | G60: =$E$60*G18 -> 112 | H60: 115.36 | I60: 118.8208 | J60: 122.385424 | K60: 126.0569867 | L60: 129.8386963
C61: Minimum Test | F61: =F54-F60 -> 110 | G61: =G54-G60 -> -72 | H61: -3.36 | I61: -3.4608 | J61: -3.564624 | K61: -3.67156272 | L61: -3.781709602
B63: Debt Balance
C64: Opening Balance | F64: =E67 -> 400 | G64: =F67 -> 551.7717113 | H64: 597.5129685 | I64: 449.8295319 | J64: 303.4778006 | K64: 159.4201392 | L64: 18.71376063
C65: Add: New Debt Issued | F65: =F96 -> 151.7717113 | G65: =G96 -> 72 | H65: 3.36 | I65: 3.4608 | J65: 3.564624 | K65: 3.67156272 | L65: 0
C66: Less: Debt Repaid | F66: =F93 -> 0 | G66: =G93 -> 26.25874281 | H66: 151.0434366 | I66: 149.8125312 | J66: 147.6222855 | K66: 144.3779412 | L66: 18.71376063
C67: Closing Debt Balance | E67: =IF(E3,E13,E64+E65-E66) -> 400 | F67: =IF(F3,F13,F64+F65-F66) -> 551.7717113 | G67: =IF(G3,G13,G64+G65-G66) -> 597.5129685 | H67: =IF(H3,H13,H64+H65-H66) -> 449.8295319 | I67: =IF(I3,I13,I64+I65-I66) -> 303.4778006 | J67: =IF(J3,J13,J64+J65-J66) -> 159.4201392 | K67: =IF(K3,K13,K64+K65-K66) -> 18.71376063 | L67: =IF(L3,L13,L64+L65-L66) -> 0
C68: Interest Expense | E68: 0.05
A70: Profit and Loss
C71: EBITDA | F71: =F18 -> 100 | G71: 280 | H71: 288.4 | I71: 297.052 | J71: 305.96356 | K71: 315.1424668 | L71: 324.5967408
C72: Less: Depreciation | F72: =F45+F30 -> 163.7138145 | G72: 190.431238 | H72: 192.8057277 | I72: 184.9862187 | J72: 175.3947692 | K72: 163.8682575 | L72: 150.2285458
C73: EBIT | F73: =F71-F72 -> -63.71381449 | G73: =G71-G72 -> 89.56876198 | H73: 95.59427232 | I73: 112.0657813 | J73: 130.5687908 | K73: 151.2742093 | L73: 174.368195
C74: Less: Interest Expense | F74: =F68 -> 0 | G74: =G68 -> 0 | H74: 0 | I74: 0 | J74: 0 | K74: 0 | L74: 0
C75: Add: Interest Income | F75: =F58 -> 0 | G75: =G58 -> 0 | H75: 0 | I75: 0 | J75: 0 | K75: 0 | L75: 0
C76: EBT | F76: =F73-F74+F75 -> -63.71381449 | G76: =G73-G74+G75 -> 89.56876198 | H76: 95.59427232 | I76: 112.0657813 | J76: 130.5687908 | K76: 151.2742093 | L76: 174.368195
C77: Less: Taxes Paid | E77: 0.3 | F77: 0 | G77: 0 | H77: 0 | I77: 0 | J77: 0 | K77: 0 | L77: 0
C78: Earnings | F78: =F76-F77 -> -63.71381449 | G78: 89.56876198 | H78: 95.59427232 | I78: 112.0657813 | J78: 130.5687908 | K78: 151.2742093 | L78: 174.368195
A80: Cash Flow Statement
C81: EBITDA | F81: =F71 -> 100 | G81: 280 | H81: 288.4 | I81: 297.052 | J81: 305.96356 | K81: 315.1424668 | L81: 324.5967408
C82: Less: Taxes Paid | F82: =F77 -> 0 | G82: =G77 -> 0 | H82: 0 | I82: 0 | J82: 0 | K82: 0 | L82: 0
C83: Less: WC Changes
D84: Net Operating Cash Flow | F84: =F81-F82-F83 -> 100 | G84: =G81-G82-G83 -> 280 | H84: 288.4 | I84: 297.052 | J84: 305.96356 | K84: 315.1424668 | L84: 324.5967408
C85: Less: Capital Expenditures | F85: =F19 -> 400 | G85: 200 | H85: 80 | I85: 80 | J85: 80 | K85: 80 | L85: 80
D86: Cash Before Financing | F86: =F84-F85 -> -300 | G86: =G84-G85 -> 80 | H86: 208.4 | I86: 217.052 | J86: 225.96356 | K86: 235.1424668 | L86: 244.5967408
C87: Less: Interest Expense | F87: =F74 -> 0 | G87: 0 | H87: 0 | I87: 0 | J87: 0 | K87: 0 | L87: 0
C88: Add: Income | F88: 0 | G88: 0 | H88: 0 | I88: 0 | J88: 0 | K88: 0 | L88: 0
C89: Less: Dividends | E89: 0.6 | F89: =$E$89*F78 -> -38.22828869 | G89: =$E$89*G78 -> 53.74125719 | H89: 57.35656339 | I89: 67.23946875 | J89: 78.34127451 | K89: 90.76452556 | L89: 104.620917
C90: Add: Equity Issues/Buybacks
C91: Net Cash Flow | F91: =F86-F87+F88-F89+F90 -> -261.7717113 | G91: =G86-G87+G88-G89+G90 -> 26.25874281 | H91: 151.0434366 | I91: 149.8125312 | J91: 147.6222855 | K91: 144.3779412 | L91: 139.9758238
D92: Add: Cash Use if Negative | F92: =MIN(F61,MAX(-F91,0)) -> 110 | G92: -72 | H92: -3.36 | I92: -3.4608 | J92: -3.564624 | K92: -3.67156272 | L92: -3.781709602
D93: Less: Debt Repaid if Positive | F93: =MIN(MAX(F91,0),F64) -> 0 | G93: 26.25874281 | H93: 151.0434366 | I93: 149.8125312 | J93: 147.6222855 | K93: 144.3779412 | L93: 18.71376063
C94: Cash Flow Sub-total | F94: =F91+F92-F93 -> -151.7717113 | G94: =G91+G92-G93 -> -72 | H94: -3.36 | I94: -3.4608 | J94: -3.564624 | K94: -3.67156272 | L94: 117.4803536
D95: Surplus Cash | F95: =MAX(F94,0) -> 0 | G95: =MAX(G94,0) -> 0 | H95: 0 | I95: 0 | J95: 0 | K95: 0 | L95: 117.4803536
D96: Added Debt | F96: =MAX(-F94,0) -> 151.7717113 | G96: =MAX(-G94,0) -> 72 | H96: 3.36 | I96: 3.4608 | J96: 3.564624 | K96: 3.67156272 | L96: 0
A99: Balance Sheet
B100: Equity Balance
C101: Opening Balance | F101: =E105 -> 300 | G101: =F105 -> 274.5144742 | H101: 310.341979 | I101: 348.5796879 | J101: 393.4060004 | K101: 445.6335168 | L101: 506.1432005
C102: Add: Net Income | F102: =F78 -> -63.71381449 | G102: 89.56876198 | H102: 95.59427232 | I102: 112.0657813 | J102: 130.5687908 | K102: 151.2742093 | L102: 174.368195
C103: Less: Dividends | F103: =F89 -> -38.22828869 | G103: 53.74125719 | H103: 57.35656339 | I103: 67.23946875 | J103: 78.34127451 | K103: 90.76452556 | L103: 104.620917
C104: Add: Equity Issues | F104: 0 | G104: 0 | H104: 0 | I104: 0 | J104: 0 | K104: 0 | L104: 0
C105: Closing Balance | E105: =IF(E3,E14,E101+E102-E103+E104) -> 300 | F105: 274.5144742 | G105: 310.341979 | H105: 348.5796879 | I105: 393.4060004 | J105: 445.6335168 | K105: 506.1432005 | L105: 575.8904785
B107: Assets
C108: Cash Balance | E108: =E57 -> 150 | F108: 40 | G108: 112 | H108: 115.36 | I108: 118.8208 | J108: 122.385424 | K108: 126.0569867 | L108: 247.3190499
C109: Net Plant | E109: =E49 -> 550 | F109: 786.2861855 | G109: 795.8549475 | H109: 683.0492198 | I109: 578.0630011 | J109: 482.6682319 | K109: 398.7999744 | L109: 328.5714286
D110: Total | E110: =SUM(E108:E109) -> 700 | F110: =SUM(F108:F109) -> 826.2861855 | G110: 907.8549475 | H110: 798.4092198 | I110: 696.8838011 | J110: 605.0536559 | K110: 524.8569611 | L110: 575.8904785
C112: Debt | E112: =E67 -> 400 | F112: 551.7717113 | G112: 597.5129685 | H112: 449.8295319 | I112: 303.4778006 | J112: 159.4201392 | K112: 18.71376063 | L112: 0
C113: Equity | E113: =E105 -> 300 | F113: =F105 -> 274.5144742 | G113: 310.341979 | H113: 348.5796879 | I113: 393.4060004 | J113: 445.6335168 | K113: 506.1432005 | L113: 575.8904785
D114: Total | E114: =SUM(E112:E113) -> 700 | F114: =SUM(F112:F113) -> 826.2861855 | G114: 907.8549475 | H114: 798.4092198 | I114: 696.8838011 | J114: 605.0536559 | K114: 524.8569611 | L114: 575.8904785
C116: Difference | E116: =E114-E110 -> 0 | F116: =F114-F110 -> 0 | G116: 0 | H116: 0 | I116: 0 | J116: 0 | K116: 0 | L116: 0
C117: Test | E117: =ROUND(E116,3)=0 -> TRUE | F117: =ROUND(F116,3)=0 -> TRUE | G117: TRUE | H117: TRUE | I117: TRUE | J117: TRUE | K117: TRUE | L117: TRUE

Sheet Sheet2
